bitfinex-derivatives/quotes_BTCF0:USTF0_20250313
["timestamp","ask_amount","ask_price","bid_price","bid_amount"]
[1741847072489,0.12181723,82866.0,82865.0,0.1913878]
[1741847074276,0.00113083,82866.0,82865.0,0.1913878]
[1741847074481,0.00113083,82866.0,82865.0,0.20377151]
[1741847074787,0.00113083,82866.0,82865.0,0.1913878]
[1741847074980,0.00113083,82866.0,82865.0,0.3148678]
[1741847076391,0.12181723,82866.0,82865.0,0.3148678]
[1741847077091,0.00113083,82866.0,82865.0,0.3148678]
[1741847077292,0.12181723,82866.0,82865.0,0.3266858]
[1741847077692,0.00113083,82866.0,82865.0,0.3266858]
[1741847078087,0.10743837,82877.0,82865.0,0.205998]
[1741847078395,0.10743837,82877.0,82876.0,0.1206718]
[1741847078587,0.10743837,82878.0,82877.0,0.1206703]
[1741847078793,0.14343212,82883.0,82877.0,0.33]
[1741847078987,0.14343212,82883.0,82882.0,0.1206631]
[1741847079187,0.14343212,82883.0,82882.0,0.5806631]
[1741847080385,0.17905265,82890.0,82889.0,0.1206529]
[1741847080586,0.17905265,82890.0,82889.0,0.4906529]
[1741847080883,0.1206321,82904.0,82895.0,0.1206441]
[1741847081093,0.0309,82902.0,82895.0,0.1906441]
[1741847081288,0.1515345,82902.0,82895.0,0.1906441]
[1741847081489,0.1206357,82901.0,82895.0,0.1906441]
[1741847081885,0.1206376,82900.0,82895.0,0.1906441]
[1741847082192,0.22122594,82896.0,82895.0,0.1906441]
[1741847083389,0.007,82896.0,82895.0,0.1906441]
[1741847084395,0.0311,82906.0,82903.0,0.1206325]
[1741847084592,0.0311,82906.0,82903.0,0.3241125]
[1741847085185,0.0311,82906.0,82903.0,0.3888125]
[1741847085387,0.1517281,82906.0,82903.0,0.2653325]
[1741847085587,0.1517281,82906.0,82903.0,0.3887725]
[1741847085786,0.00718096,82904.0,82903.0,0.3887725]
[1741847086285,0.12781196,82904.0,82903.0,0.3887725]
[1741847088692,0.12781196,82904.0,82903.0,0.3287725]
[1741847090887,0.00718096,82904.0,82903.0,0.3287725]
[1741847091697,0.12781196,82904.0,82903.0,0.3287725]
[1741847091893,0.06988096,82904.0,82903.0,0.3287725]
[1741847092194,0.00181006,82909.0,82908.0,0.1206252]
[1741847092400,0.00181006,82909.0,82908.0,0.1706252]
[1741847092995,0.00181006,82909.0,82908.0,0.2332252]
[1741847093196,0.00181006,82909.0,82908.0,0.2132252]
[1741847093588,0.00881006,82909.0,82908.0,0.2132252]
[1741847094405,0.00881006,82909.0,82908.0,0.22529458]
[1741847094609,0.0602952,82932.0,82916.0,0.1206136]
[1741847094794,0.27079306,82917.0,82916.0,0.0146645]
[1741847095100,0.1206238,82909.0,82908.0,0.00018096]
[1741847095404,0.1206456,82894.0,82893.0,0.0315]
[1741847096294,0.1206587,82885.0,82884.0,0.1234]
[1741847096490,0.0603284,82887.0,82883.0,0.0315]
[1741847096698,0.1196602,82884.0,82883.0,0.0315]
[1741847097606,0.1156602,82884.0,82883.0,0.0315]
[1741847098411,0.1156602,82884.0,82883.0,0.0365]
[1741847098702,0.1472602,82884.0,82883.0,0.0365]
[1741847099504,0.1472602,82884.0,82883.0,0.1571616]
[1741847100201,0.0316,82884.0,82883.0,0.1671616]
[1741847100503,0.1522602,82884.0,82883.0,0.1671616]
[1741847102209,0.1522602,82884.0,82883.0,0.0465]
[1741847102609,0.1522602,82884.0,82883.0,0.1671616]
[1741847102801,0.1522602,82884.0,82883.0,0.0465]
[1741847103200,0.0603258,82890.0,82883.0,0.0465]
[1741847103201,0.00120001,82904.0,82883.0,0.0465]
[1741847103501,0.21422594,82911.0,82892.0,0.1206485]
[1741847103502,0.15372796,82893.0,82892.0,0.1206485]
[1741847104108,0.15372796,82893.0,82892.0,0.1853485]
[1741847104408,0.15372796,82893.0,82892.0,0.1953485]
[1741847105001,0.03308096,82893.0,82892.0,0.2153485]
[1741847105201,0.03308096,82893.0,82892.0,0.1963485]
[1741847105414,0.03308096,82893.0,82892.0,0.2163485]
[1741847105807,0.00018096,82893.0,82892.0,0.22827236]
[1741847106123,0.00018096,82893.0,82892.0,0.24827236]
[1741847107010,0.26069371,82920.0,82910.0,0.1206223]
[1741847107206,0.0289,82912.0,82911.0,0.1539209]
[1741847107507,0.1495194,82912.0,82911.0,0.1539209]
[1741847108511,0.1495194,82912.0,82911.0,0.1849209]
[1741847109201,0.0289,82912.0,82911.0,0.1849209]
[1741847110209,0.00018096,82920.0,82919.0,0.1206092]
[1741847110804,0.12078876,82920.0,82919.0,0.1521092]
[1741847111116,0.12078876,82920.0,82919.0,0.0315]
[1741847111311,0.00618096,82920.0,82919.0,0.001]
[1741847111614,0.12678876,82920.0,82919.0,0.001]
[1741847111816,0.12678876,82920.0,82919.0,0.1216092]
[1741847112015,0.15568876,82920.0,82919.0,0.001]
[1741847112202,0.15568876,82920.0,82919.0,0.1531092]
[1741847112808,0.15568876,82920.0,82919.0,0.0325]
[1741847113012,0.18738876,82920.0,82919.0,0.0325]
[1741847113911,0.18738876,82920.0,82919.0,0.001]
[1741847115504,0.120631,82904.0,82903.0,0.00018096]
[1741847116305,0.13284096,82904.0,82903.0,0.00018096]
[1741847117307,0.13584096,82904.0,82903.0,0.00018096]
[1741847118017,0.13284096,82904.0,82903.0,0.00018096]
[1741847118314,0.13684096,82904.0,82903.0,0.00018096]
[1741847120311,0.13684096,82904.0,82903.0,0.12081346]
[1741847120501,0.13684096,82904.0,82903.0,0.00018096]
[1741847122311,0.19844096,82904.0,82903.0,0.00018096]
[1741847125918,0.16954096,82904.0,82903.0,0.00018096]
[1741847127619,0.18105542,82904.0,82903.0,0.00018096]
[1741847127805,0.21205542,82904.0,82903.0,0.00018096]
[1741847128420,0.2120571,82904.0,82903.0,0.00018096]
[1741847128608,0.23116233,82904.0,82903.0,0.00018096]
[1741847128805,0.1206369,82900.0,82899.0,0.0306]
[1741847129012,0.15125827,82900.0,82899.0,0.0306]
[1741847129720,0.18265827,82900.0,82899.0,0.0306]
[1741847130116,0.18465827,82900.0,82899.0,0.0306]
[1741847130913,0.18465827,82900.0,82899.0,0.1512383]
[1741847131113,0.15325827,82900.0,82899.0,0.1612383]
[1741847131617,0.13415304,82900.0,82899.0,0.1612383]
[1741847132012,0.19280845,82900.0,82899.0,0.12562987]
[1741847132615,0.21142501,82900.0,82899.0,0.12562987]
[1741847134218,0.1527696,82900.0,82899.0,0.12562987]
[1741847135221,0.1527696,82900.0,82899.0,0.15682987]
[1741847135826,0.0321327,82900.0,82899.0,0.15682987]
[1741847136135,0.29999661,82906.0,82905.0,0.1206296]
[1741847136321,0.29999661,82906.0,82905.0,0.1306296]
[1741847136926,0.29999661,82906.0,82905.0,0.1949296]
[1741847137618,0.30399661,82906.0,82905.0,0.1949296]
[1741847138124,0.1246288,82906.0,82905.0,0.1949296]
[1741847139327,0.004,82906.0,82905.0,0.2149296]
[1741847139728,0.004,82906.0,82905.0,0.22687036]
[1741847139927,0.004,82906.0,82905.0,0.20687036]
[1741847140923,0.004,82906.0,82905.0,0.24687036]
[1741847141124,0.004,82906.0,82905.0,0.20687036]
[1741847141629,0.004,82906.0,82905.0,0.22687036]
[1741847142719,0.004,82906.0,82905.0,0.25687036]
[1741847145124,0.004,82906.0,82905.0,0.22687036]
[1741847145526,0.004,82906.0,82905.0,0.20687036]
[1741847145721,0.004,82906.0,82905.0,0.22687036]
[1741847148327,0.01551868,82906.0,82905.0,0.22687036]
[1741847150626,0.01551868,82906.0,82905.0,0.20687036]
[1741847151149,0.01551868,82906.0,82905.0,0.22687036]
[1741847153231,0.01551868,82906.0,82905.0,0.20687036]
[1741847153527,0.01551868,82906.0,82905.0,0.22687036]
[1741847154325,0.004,82906.0,82905.0,0.22687036]
[1741847155328,0.004,82906.0,82905.0,0.24687036]
[1741847156038,0.14352373,82913.0,82912.0,0.1206194]
[1741847156227,0.15549951,82913.0,82912.0,0.4506194]
[1741847157229,0.15949951,82913.0,82912.0,0.4516194]
[1741847157430,0.01597578,82913.0,82912.0,0.4516194]
[1741847158337,0.0276208,82913.0,82912.0,0.4516194]
[1741847160731,0.02763938,82913.0,82912.0,0.4516194]
[1741847160926,0.01564502,82913.0,82912.0,0.4516194]
[1741847161126,0.004,82913.0,82912.0,0.4516194]
[1741847161729,0.01600272,82913.0,82912.0,0.4516194]
[1741847162236,0.004,82913.0,82912.0,0.4516194]
[1741847162938,0.01615917,82913.0,82912.0,0.4516194]
[1741847163143,0.004,82913.0,82912.0,0.4516194]
[1741847163341,0.01616035,82913.0,82912.0,0.4516194]
[1741847163842,0.004,82913.0,82912.0,0.4516194]
[1741847165444,0.01595222,82913.0,82912.0,0.3816194]
[1741847165742,0.01595222,82913.0,82912.0,0.4016194]
[1741847166040,0.02743931,82913.0,82912.0,0.4016194]
[1741847166445,0.10759506,82913.0,82912.0,0.4016194]
[1741847166744,0.08843931,82913.0,82912.0,0.4016194]
[1741847171437,0.02743931,82913.0,82912.0,0.4016194]
[1741847172840,0.01548709,82913.0,82912.0,0.4016194]
[1741847173039,0.14352373,82916.0,82915.0,0.120615]
[1741847173239,0.15462929,82916.0,82915.0,0.503935]
[1741847173741,0.01110556,82916.0,82915.0,0.503935]
[1741847175651,0.01110556,82916.0,82915.0,0.504935]
[1741847175844,0.0633,82919.0,82915.0,0.38432]
[1741847176047,0.0633,82919.0,82918.0,0.1206107]
[1741847176248,0.0633,82919.0,82918.0,0.2406107]
[1741847178750,0.0633,82919.0,82918.0,0.2416107]
[1741847179146,0.0329,82919.0,82918.0,0.2416107]
[1741847179748,0.0642,82919.0,82918.0,0.2749307]
[1741847179948,0.0329,82919.0,82918.0,0.2849307]
[1741847180149,0.17936781,82925.0,82922.0,0.0603018]
[1741847180349,0.17936781,82925.0,82924.0,0.1206019]
[1741847180555,0.17936781,82925.0,82924.0,0.42284138]
[1741847180756,0.17936781,82925.0,82924.0,0.48864138]
[1741847182649,0.00018096,82933.0,82929.0,0.1205947]
[1741847182851,0.00018096,82933.0,82931.0,0.1205918]
[1741847183048,0.24744639,82932.0,82931.0,0.2905918]
[1741847183245,0.24744639,82932.0,82931.0,0.3550918]
[1741847183959,0.07633457,82932.0,82931.0,0.3550918]
[1741847184156,0.0653,82932.0,82931.0,0.3550918]
[1741847184361,0.21552735,82933.0,82932.0,0.1205903]
[1741847184554,0.22656017,82933.0,82932.0,0.4683903]
[1741847184949,0.21552735,82933.0,82932.0,0.4683903]
[1741847185953,0.21552735,82933.0,82932.0,0.4693903]
[1741847187356,0.12076986,82933.0,82932.0,0.4693903]
[1741847187554,0.12076986,82933.0,82932.0,0.2393903]
[1741847188263,0.18336986,82933.0,82932.0,0.3627103]
[1741847188564,0.18336986,82933.0,82932.0,0.2393903]
[1741847188755,0.18336986,82933.0,82932.0,0.2969103]
[1741847189156,0.18336986,82933.0,82932.0,0.3273103]
[1741847192263,0.18336986,82933.0,82932.0,0.2039903]
[1741847192452,0.18336986,82933.0,82932.0,0.3272703]
[1741847192657,0.06278096,82933.0,82932.0,0.3272703]
[1741847192853,0.00018096,82933.0,82932.0,0.3272703]
[1741847197265,0.00018096,82933.0,82932.0,0.3472703]
[1741847197568,0.14374921,82944.0,82932.0,0.22668]
[1741847197875,0.0307,82943.0,82942.0,0.1205743]
[1741847198162,0.1836743,82943.0,82942.0,0.5638543]
[1741847198353,0.1836743,82943.0,82942.0,0.5338543]
[1741847198558,0.1836743,82943.0,82942.0,0.5138543]
[1741847199160,0.1836743,82943.0,82942.0,0.52566842]
[1741847200563,0.1836743,82943.0,82942.0,0.5138543]
[1741847200868,0.1836743,82943.0,82942.0,0.39328]
[1741847201072,0.1836743,82943.0,82942.0,0.5138558]
[1741847201771,0.1836743,82943.0,82942.0,0.5148558]
[1741847203071,0.1836743,82943.0,82942.0,0.3915758]
[1741847203863,0.1836743,82943.0,82942.0,0.4115758]
[1741847204057,0.1836743,82943.0,82942.0,0.4015758]
[1741847204261,0.1836743,82943.0,82942.0,0.3915758]
[1741847204568,0.1836743,82943.0,82942.0,0.4115758]
[1741847206463,0.1836743,82943.0,82942.0,0.3915758]
[1741847206663,0.1836743,82943.0,82942.0,0.4115758]
[1741847207470,0.1836743,82943.0,82942.0,0.3915758]
[1741847209067,0.1836743,82943.0,82942.0,0.271]
[1741847209265,0.1836743,82943.0,82942.0,0.001]
[1741847209861,0.0631,82943.0,82942.0,0.1215758]
[1741847210066,0.0631,82943.0,82942.0,0.2015758]
[1741847210571,0.0631,82943.0,82942.0,0.2326758]
[1741847210770,0.00180894,82948.0,82947.0,0.1205685]
[1741847210978,0.00180894,82948.0,82947.0,0.1405685]
[1741847211180,0.12237604,82948.0,82947.0,0.1605685]
[1741847211474,0.15547604,82948.0,82947.0,0.1605685]
[1741847211666,0.03490894,82948.0,82947.0,0.1605685]
[1741847212171,0.21534639,82950.0,82947.0,0.1605685]
[1741847212372,0.21534639,82950.0,82949.0,0.1205656]
[1741847212567,0.21534639,82950.0,82949.0,0.6105656]
[1741847212763,0.21534639,82950.0,82949.0,0.6416656]
[1741847213365,0.0317,82961.0,82960.0,0.1205496]
[1741847213571,0.1205422,82966.0,82965.0,0.1205423]
[1741847214571,0.24998551,82970.0,82969.0,0.1205365]
[1741847214773,0.24882551,82970.0,82969.0,0.3905365]
[1741847214982,0.28052551,82970.0,82969.0,0.5137765]
[1741847215176,0.28052551,82970.0,82969.0,0.3905365]
[1741847215476,0.28052551,82970.0,82969.0,0.5940765]
[1741847215670,0.40106061,82970.0,82969.0,0.5940765]
[1741847215870,0.40106061,82970.0,82969.0,0.4708365]
[1741847216174,0.1522351,82970.0,82969.0,0.5540765]
[1741847216365,0.1522351,82970.0,82969.0,0.5640765]
[1741847216566,0.0317,82970.0,82969.0,0.5640765]
[1741847216763,0.1522351,82970.0,82969.0,0.5640765]
[1741847217467,0.0317,82970.0,82969.0,0.5640765]
[1741847217672,0.1522351,82970.0,82969.0,0.5650765]
[1741847218670,0.1522351,82970.0,82969.0,0.5550765]
[1741847218972,0.1205351,82970.0,82969.0,0.4518365]
[1741847219162,0.1509351,82970.0,82969.0,0.5750765]
[1741847220269,0.1509351,82970.0,82969.0,0.4318365]
[1741847220969,0.1509351,82970.0,82969.0,0.4345]
[1741847221171,0.1509351,82970.0,82969.0,0.4318365]
[1741847221376,0.1509351,82970.0,82969.0,0.3113]
[1741847221679,0.1509351,82970.0,82969.0,0.4318365]
[1741847222378,0.1509351,82970.0,82969.0,0.4418365]
[1741847223274,0.1509351,82970.0,82969.0,0.4318365]
[1741847223479,0.1509351,82970.0,82969.0,0.3113]
[1741847223671,0.1509351,82970.0,82969.0,0.4318365]
[1741847223974,0.1509351,82970.0,82969.0,0.3113]
[1741847224670,0.1509351,82970.0,82969.0,0.4318365]
[1741847225275,0.1509351,82970.0,82969.0,0.2811]
[1741847225478,0.1509351,82970.0,82969.0,0.4016365]
[1741847226474,0.1509351,82970.0,82969.0,0.4327365]
[1741847227075,0.10757138,82973.0,82972.0,0.1205322]
[1741847227274,0.10757138,82973.0,82972.0,0.2105322]
[1741847227571,0.10757138,82973.0,82972.0,0.3337322]
[1741847227984,0.22810208,82973.0,82972.0,0.3337322]
[1741847228278,0.10757138,82973.0,82972.0,0.2115322]
[1741847228676,0.1434285,82977.0,82976.0,0.1205264]
[1741847228873,0.1434285,82977.0,82976.0,0.6305264]
[1741847230780,0.1205196,82981.0,82976.0,0.51]
[1741847230982,0.1244581,82984.0,82982.0,0.1205162]
[1741847230983,0.1205167,82983.0,82982.0,0.1205162]
[1741847231183,0.1205167,82983.0,82982.0,0.2637162]
[1741847231385,0.1534167,82983.0,82982.0,0.2637162]
[1741847231571,0.1534167,82983.0,82982.0,0.2537162]
[1741847231978,0.1534167,82983.0,82982.0,0.1332]
[1741847232176,0.1205249,82977.0,82976.0,0.001]
[1741847232376,0.1195249,82977.0,82974.0,0.00018084]
[1741847232677,0.1205278,82975.0,82974.0,0.00018084]
[1741847233084,0.1857278,82975.0,82974.0,0.00018084]
[1741847233585,0.1847278,82975.0,82974.0,0.00018084]
[1741847234283,0.19707481,82975.0,82974.0,0.00018084]
[1741847236386,0.19707481,82975.0,82974.0,0.00118084]
[1741847236978,0.19707481,82975.0,82974.0,0.12171014]
[1741847237178,0.19707481,82975.0,82974.0,0.00118084]
[1741847238080,0.19707481,82975.0,82974.0,0.12171014]
[1741847238283,0.0652,82975.0,82974.0,0.12171014]
[1741847238490,0.1857278,82975.0,82974.0,0.12171014]
[1741847239585,0.1857278,82975.0,82974.0,0.00118084]
[1741847239778,0.1857278,82975.0,82974.0,0.12171014]
[1741847239972,0.1857278,82975.0,82974.0,0.00118084]
[1741847240186,0.1857278,82975.0,82974.0,0.12171014]
[1741847240574,0.1857278,82975.0,82974.0,0.00118084]
[1741847243078,0.1857278,82975.0,82974.0,0.12171014]
[1741847243886,0.1857278,82975.0,82974.0,0.00118084]
[1741847247879,0.1205598,82953.0,82947.0,0.00180838]
[1741847248086,0.1205598,82953.0,82952.0,0.23669894]
[1741847248284,0.1205598,82953.0,82952.0,0.21669894]
[1741847249176,0.1205612,82952.0,82951.0,0.21669894]
[1741847249382,0.1528612,82952.0,82951.0,0.21669894]
[1741847249983,0.16465815,82952.0,82951.0,0.21669894]
[1741847250493,0.16465815,82952.0,82951.0,0.15721394]
[1741847250987,0.19595815,82952.0,82951.0,0.15721394]
[1741847251194,0.12057,82946.0,82945.0,0.28840333]
[1741847252081,0.12057,82946.0,82945.0,0.32080333]
[1741847252082,0.18327,82946.0,82945.0,0.32080333]
[1741847253496,0.18327,82946.0,82945.0,0.0324]
[1741847254998,0.1205714,82945.0,82944.0,0.00018084]
[1741847255388,0.1830714,82945.0,82944.0,0.00018084]
[1741847258503,0.1830714,82945.0,82944.0,0.12075374]
[1741847258692,0.1830714,82945.0,82944.0,0.00018084]
[1741847259494,0.1830714,82945.0,82944.0,0.12075374]
[1741847259696,0.1514714,82945.0,82942.0,0.12055526]
[1741847260000,0.1205729,82944.0,82943.0,0.0323]
[1741847261499,0.1205729,82944.0,82943.0,0.1528743]
[1741847262202,0.1205707,82946.0,82945.0,0.1205685]
[1741847262700,0.1205707,82946.0,82945.0,0.1537685]
[1741847263496,0.1205707,82946.0,82945.0,0.0332]
[1741847264399,0.1516707,82946.0,82945.0,0.0332]
[1741847265605,0.1841707,82946.0,82945.0,0.0332]
[1741847268005,0.3073707,82946.0,82945.0,0.0332]
[1741847269614,0.1868,82946.0,82935.0,0.00018084]
[1741847269917,0.1205845,82936.0,82935.0,0.00018084]
[1741847270712,0.1817845,82936.0,82935.0,4e-08]
[1741847271720,0.19295972,82936.0,82935.0,4e-08]
[1741847271927,0.19295972,82936.0,82935.0,0.00400004]
[1741847273722,0.19295972,82936.0,82935.0,4e-08]
[1741847275323,0.19295972,82936.0,82914.0,0.0302]
[1741847275324,0.120615,82915.0,82914.0,0.0302]
[1741847275532,0.120615,82915.0,82914.0,0.0502]
[1741847276133,0.13276796,82915.0,82914.0,0.0502]
[1741847276431,0.143949,82915.0,82914.0,0.0502]
[1741847276626,0.143949,82915.0,82914.0,0.0572]
[1741847278627,0.127949,82915.0,82914.0,0.0572]
[1741847279031,0.11579604,82915.0,82914.0,0.0572]
[1741847279232,0.11779604,82915.0,82914.0,0.0502]
[1741847279428,0.11779604,82915.0,82914.0,0.1708165]
[1741847279630,0.11779604,82915.0,82914.0,0.2008165]
[1741847280234,0.11579604,82915.0,82914.0,0.2008165]
[1741847280533,0.11779604,82915.0,82914.0,0.2008165]
[1741847280835,0.106615,82915.0,82914.0,0.2008165]
[1741847282132,0.106615,82915.0,82914.0,0.0802]
[1741847282535,0.106615,82915.0,82914.0,0.2008165]
[1741847282734,0.11763273,82915.0,82914.0,0.2008165]
[1741847283130,0.11763273,82915.0,82914.0,0.0802]
[1741847284840,0.106615,82915.0,82914.0,0.2008165]
[1741847285334,0.106615,82915.0,82914.0,0.0802]
[1741847285639,0.11775193,82915.0,82914.0,0.0802]
[1741847285938,0.14995193,82915.0,82914.0,0.0802]
[1741847286327,0.1499519,82915.0,82914.0,0.0802]
[1741847286731,0.1479519,82915.0,82914.0,0.0802]
[1741847286932,0.1177519,82915.0,82914.0,0.2008165]
[1741847287443,0.0131369,82915.0,82914.0,0.2308165]
[1741847287626,0.14337049,82918.0,82917.0,0.1206121]
[1741847287833,0.14337049,82918.0,82917.0,0.4206121]
[1741847288442,0.26398119,82918.0,82917.0,0.4206121]
[1741847288834,0.14337049,82918.0,82917.0,0.43253295]
[1741847289235,0.26398119,82918.0,82917.0,0.43253295]
[1741847289539,0.14337049,82918.0,82917.0,0.43253295]
[1741847289736,0.26398119,82918.0,82917.0,0.43253295]
[1741847290235,0.14337049,82918.0,82917.0,0.43253295]
[1741847290438,0.1206107,82918.0,82917.0,0.55577295]
[1741847291540,0.00018084,82923.0,82922.0,0.1206049]
[1741847291736,0.00018084,82923.0,82922.0,0.3906049]
[1741847292245,0.00018084,82923.0,82922.0,0.4537049]
[1741847292837,0.00018084,82923.0,82922.0,0.4547049]
[1741847293840,0.12078424,82923.0,82922.0,0.4547049]
[1741847294438,0.12078424,82923.0,82922.0,0.3341]
[1741847295639,0.12078424,82923.0,82922.0,0.3241]
[1741847296145,0.15218424,82923.0,82922.0,0.3241]
[1741847296445,0.15218424,82923.0,82922.0,0.0641]
[1741847296948,0.15218424,82923.0,82922.0,0.001]
[1741847298549,0.39003216,82923.0,82922.0,0.1216049]
[1741847299445,0.39003216,82923.0,82922.0,0.1846049]
[1741847300854,0.39003216,82923.0,82922.0,0.064]
[1741847301153,0.21081905,82923.0,82922.0,0.064]
[1741847301752,0.21081905,82923.0,82922.0,0.1846049]
[1741847302348,0.21081905,82923.0,82922.0,0.064]
[1741847304448,0.21081905,82923.0,82922.0,0.0313]
[1741847304650,0.21081905,82923.0,82922.0,0.001]
[1741847308455,0.05881565,82923.0,82922.0,0.2016049]
[1741847308663,0.05881565,82923.0,82922.0,0.1816049]
[1741847309054,0.05881565,82923.0,82922.0,0.2016049]
[1741847309251,0.05881565,82923.0,82922.0,0.2666049]
[1741847309457,0.17941905,82923.0,82922.0,0.2666049]
[1741847310459,0.17941905,82923.0,82922.0,0.27881339]
[1741847311563,0.17941905,82923.0,82922.0,0.2666049]
[1741847312159,0.21061905,82923.0,82922.0,0.2666049]
[1741847312769,0.15198424,82923.0,82922.0,0.2666049]
[1741847312964,0.12078424,82923.0,82922.0,0.27853828]
[1741847313467,0.12078424,82923.0,82922.0,0.2666049]
[1741847313767,0.00018084,82923.0,82922.0,0.2666049]
[1741847314866,0.00018084,82923.0,82922.0,0.3897649]
[1741847316772,0.12078424,82923.0,82922.0,0.40193398]
[1741847317070,0.12078424,82923.0,82922.0,0.26916]
[1741847317461,0.12078424,82923.0,82922.0,0.146]
[1741847317662,0.15348424,82923.0,82922.0,0.146]
[1741847318058,0.15348424,82923.0,82922.0,0.126]
[1741847319470,0.15348424,82923.0,82922.0,0.2466049]
[1741847320578,0.00018084,82923.0,82922.0,0.2666049]
[1741847322661,0.00018084,82923.0,82922.0,0.3897649]
[1741847326472,0.00018084,82923.0,82922.0,0.2666049]
[1741847326675,0.0602838,82948.0,82930.0,0.1205932]
[1741847326975,0.0307,82939.0,82930.0,0.4405932]
[1741847327162,0.1205837,82937.0,82930.0,0.4405932]
[1741847327367,0.17959058,82937.0,82930.0,0.4405932]
[1741847328077,0.17959058,82937.0,82930.0,0.5647132]
[1741847328267,0.17959058,82937.0,82936.0,0.1205845]
[1741847328462,0.17959058,82937.0,82936.0,0.4605845]
[1741847328662,0.17959058,82937.0,82936.0,0.5837045]
[1741847328872,0.21505574,82943.0,82942.0,0.1205758]
[1741847329068,0.21505574,82943.0,82942.0,0.7436958]
[1741847329270,0.24998551,82950.0,82942.0,0.62312]
[1741847329470,0.19220611,82950.0,82949.0,0.1205656]
[1741847329674,0.19220611,82950.0,82949.0,0.5705656]
[1741847329871,0.28561203,82955.0,82954.0,0.1205583]
[1741847330071,0.28437202,82955.0,82954.0,0.4805583]
[1741847330565,0.28437202,82955.0,82954.0,0.6036783]
[1741847330771,0.28437202,82955.0,82954.0,0.5443583]
[1741847330968,0.28437202,82955.0,82954.0,0.6674783]
[1741847331180,0.00018084,82958.0,82954.0,0.54692]
[1741847331380,0.00018084,82958.0,82957.0,0.120554]
[1741847331675,0.00018084,82958.0,82957.0,0.360554]
[1741847331676,0.12073334,82958.0,82957.0,0.360554]
[1741847331883,0.12073334,82958.0,82957.0,0.483674]
[1741847332775,0.15263334,82958.0,82957.0,0.36312]
[1741847333276,0.15263334,82958.0,82957.0,0.473674]
[1741847333478,0.15263334,82958.0,82957.0,0.350554]
[1741847333670,0.15263334,82958.0,82957.0,0.537274]
[1741847335668,0.03208084,82958.0,82957.0,0.537274]
[1741847335875,0.03208084,82958.0,82957.0,0.557274]
[1741847336075,0.03208084,82958.0,82957.0,0.577274]
[1741847336476,0.03208084,82958.0,82957.0,0.557274]
[1741847336671,0.00018084,82958.0,82957.0,0.557274]
[1741847336872,0.0602632,82976.0,82970.0,0.1205351]
[1741847337083,0.13434208,82971.0,82970.0,0.1205351]
[1741847337688,0.12234213,82971.0,82970.0,0.1205351]
[1741847338182,0.00180853,82971.0,82970.0,0.1427815]
[1741847338393,0.06460853,82971.0,82970.0,0.2048815]
[1741847338584,0.18514213,82971.0,82970.0,0.1926351]
[1741847341888,0.18514213,82971.0,82970.0,0.3157151]
[1741847342184,0.18514213,82971.0,82970.0,0.1926351]
[1741847342386,0.00018084,82979.0,82970.0,0.3426351]
[1741847342576,0.0324,82996.0,82995.0,0.1204988]
[1741847342779,0.1528973,82996.0,82995.0,0.12308]
[1741847342980,0.1528973,82996.0,82995.0,0.2435788]
[1741847344285,8e-08,83004.0,83003.0,0.1204872]
[1741847344490,0.2861796,83017.0,83013.0,0.1204726]
[1741847344687,0.033,83016.0,83015.0,0.1204697]
[1741847344987,0.2873396,83017.0,83016.0,0.1204683]
[1741847345187,0.2861796,83017.0,83016.0,0.1504683]
[1741847345384,0.2861796,83017.0,83016.0,0.1304683]
[1741847346295,0.4066464,83017.0,83016.0,0.1304683]
[1741847346484,0.4066464,83017.0,83016.0,0.1314683]
[1741847347091,0.41663221,83017.0,83016.0,0.011]
[1741847347690,0.48203221,83017.0,83016.0,0.011]
[1741847348393,0.47023882,83017.0,83016.0,0.1314683]
[1741847349094,0.1858668,83017.0,83016.0,0.1314683]
[1741847350192,0.1858668,83017.0,83016.0,0.011]
[1741847350589,0.1858668,83017.0,83016.0,0.1314683]
[1741847351897,0.0654,83017.0,83016.0,0.1314683]
[1741847352095,0.1858668,83017.0,83016.0,0.1314683]
[1741847352601,0.0654,83017.0,83016.0,0.1314683]
[1741847353391,0.1858668,83017.0,83016.0,0.1314683]
[1741847354396,0.1858668,83017.0,83016.0,0.011]
[1741847354592,0.1858668,83017.0,83016.0,0.1632683]
[1741847355192,0.0654,83017.0,83016.0,0.1832683]
[1741847355392,0.0654,83017.0,83016.0,0.1632683]
[1741847355599,0.1858668,83017.0,83016.0,0.1632683]
[1741847355796,0.1858668,83017.0,83016.0,0.1314683]
[1741847356002,0.1858668,83017.0,83016.0,0.1644683]
[1741847356702,0.1858668,83017.0,83016.0,0.044]
[1741847356895,0.1858668,83017.0,83016.0,0.001]
[1741847357510,0.1858668,83017.0,83008.0,0.00018073]
[1741847357704,0.1204785,83009.0,83008.0,0.00018073]
[1741847358706,0.1850785,83009.0,83008.0,0.00018073]
[1741847362107,0.1870785,83009.0,83008.0,0.00018073]
[1741847362610,0.1870785,83009.0,83008.0,0.12066063]
[1741847362806,0.1870785,83009.0,83008.0,0.00018073]
[1741847363307,0.002,83009.0,83008.0,0.34066063]
[1741847363701,0.002,83009.0,83008.0,0.40536063]
[1741847363900,0.1224785,83009.0,83008.0,0.40536063]
[1741847364208,0.1224785,83009.0,83008.0,0.28488073]
[1741847364504,0.1526785,83009.0,83008.0,0.28488073]
[1741847365211,0.1526785,83009.0,83008.0,0.40536063]
[1741847365411,0.1516785,83009.0,83008.0,0.40536063]
[1741847365608,0.1516785,83009.0,83008.0,0.28488073]
[1741847366701,0.1516785,83009.0,83008.0,0.40536063]
[1741847367817,0.1516785,83009.0,83008.0,0.28488073]
[1741847368614,0.1516785,83009.0,83008.0,0.40536063]
[1741847368801,0.1214785,83009.0,83008.0,0.28488073]
[1741847369009,0.1546785,83009.0,83008.0,0.28488073]
[1741847369412,0.1546785,83009.0,83008.0,0.40536063]
[1741847369713,0.1546785,83009.0,83008.0,0.28488073]
[1741847370606,0.1546785,83009.0,83008.0,0.06488073]
[1741847371307,0.1546785,83009.0,83008.0,0.18536063]
[1741847374318,0.001,83009.0,83008.0,0.18536063]
[1741847374513,0.001,83009.0,83008.0,0.28536063]
[1741847375514,0.04534901,83010.0,83009.0,0.1204785]
[1741847375715,0.04534901,83010.0,83009.0,0.4004785]
[1741847375917,0.04534901,83010.0,83009.0,0.4627785]
[1741847377217,0.04534901,83010.0,83009.0,0.47465033]
[1741847378511,0.1204685,83016.0,83009.0,0.35417183]
[1741847378716,0.1204685,83016.0,83015.0,0.1204697]
[1741847378916,0.1204685,83016.0,83015.0,0.5333897]
[1741847379513,0.1204685,83016.0,83015.0,0.5989897]
[1741847380823,0.0321,83020.0,83015.0,0.47852]
[1741847381118,0.1204664,83018.0,83017.0,0.1204639]
[1741847381326,0.0321,83020.0,83017.0,0.2027639]
[1741847381620,0.0921283,83025.0,83017.0,0.2027639]